Cogmind - Beta 13 @@@ ROGUE MODE // 2024.03.14 @ 21:35:24 Player: arcadio rl Result: Destroyed by S-27 Virus with Autogun Performance ------------- Evolutions (3) 1500 Regions Visited (8) 1600 Robots Destroyed (78) 390 Value Destroyed (3205) 3205 Prototype IDs (9) 180 Alien Tech Used (0) 0 Bonus (1214) 1214 TOTAL SCORE: 8089 Bonus ------- High Alert Combat Kills 214 Entered Garrisons 200 Used RIF Installer 500 Aligned with FarCom 300 Cogmind --------- Core Integrity 0/700 Matter 134/300 Energy 99/100 System Corruption 0% Temperature Cool (0) Movement Core (50) Location -7/Factory Parts ------- > --- POWER (1) -------- (None) > --- PROPULSION (3) --- (None) > --- UTILITY (7) ------ (None) > --- WEAPON (2) ------- (None) > --- INVENTORY (5) ---- Heavy Ion Engine Core Analyzer Matter Filter Cloak of Protection Proton Missile Launcher Peak State ------------ > --- POWER ------------ Deuterium Engine > --- PROPULSION ------- Improved Titanium Leg Potential Leg Potential Leg > --- UTILITY ---------- High-capacity Storage Unit Improved Signal Interpreter Targeting Computer Core Analyzer Kinecellerator Medium Armor Plating Recalibrator > --- WEAPON ----------- AWS/Gauss > --- INVENTORY -------- Heavy Ion Engine Light Deuterium Engine VSS Leg Improved Titanium Leg Improved Titanium Leg Improved Titanium Leg Cloak of Protection Hardened Light Armor Plating Hardened Heavy Armor Plating Hardlight Generator Relay Coupler [Swarmer] Relay Coupler [Brawler] Relay Coupler [Heavy] Gauss Cannon Advanced EMP Blaster Proton Missile Launcher Improved Grenade Launcher Heavy Missile Launcher Datajack [Rating: 69] Favorites ----------- Power Ion Engine Engine Ion Engine Power Core Micro Nuclear Core Propulsion Potential Leg Treads Light Treads Leg Potential Leg Hover Unit Backup Propulsion I Utility Targeting Computer Device Recoil Stabilizer Storage High-capacity Storage Unit Processor Targeting Computer Hackware Relay Coupler [Swarmer] Protection Medium Armor Plating Weapon Assault Rifle Energy Cannon Plasma Cannon Ballistic Gun Assault Rifle Ballistic Cannon Gauss Cannon Launcher Heavy Missile Launcher Special Weapon Remote Datajack Special Melee Weapon Datajack Build | -11 -10 -10 -10 -9 -8 -7 -7 -7 ------- Run | Yrd Mat Min Exi Min Mat Fac Gar Fac Slots Evolved 6 | . . . . . 4 2 . . Power . | . . . . . . . . . Propulsion 1 | . . . . . . 1 . . Utility 5 | . . . . . 4 1 . . Weapon . | . . . . . . . . . Parts Attached 91 | 6 26 . 9 . 6 10 12 22 Power 6 | 1 1 . . . 2 . . 2 Engine 5 | 1 1 . . . 2 . . 1 Core 1 | . . . . . . . . 1 Reactor . | . . . . . . . . . Propulsion 25 | 2 12 . 2 . . 3 1 5 Treads 4 | . 4 . . . . . . . Leg 20 | 2 7 . 2 . . 3 1 5 Wheel . | . . . . . . . . . Hover 1 | . 1 . . . . . . . Flight . | . . . . . . . . . Utility 37 | 1 7 . 6 . 4 7 7 5 Device 11 | . 2 . 2 . . 3 1 3 Storage 7 | 1 3 . 3 . . . . . Processor 6 | . . . 1 . 2 3 . . Hackware 5 | . . . . . . . 4 1 Protection 8 | . 2 . . . 2 1 2 1 Artifact . | . . . . . . . . . Weapon 23 | 2 6 . 1 . . . 4 10 Energy Gun . | . . . . . . . . . Energy Cannon 2 | . . . . . . . . 2 Ballistic Gun 13 | 2 4 . 1 . . . 1 5 Ballistic Cannon 2 | . 1 . . . . . 1 . Launcher 4 | . 1 . . . . . 2 1 Special Weapon 1 | . . . . . . . . 1 Impact Weapon . | . . . . . . . . . Slashing Weapon . | . . . . . . . . . Piercing Weapon . | . . . . . . . . . Special Melee Weapon 1 | . . . . . . . . 1 Unidentified Prototypes 4 | . . . 3 . . . . 1 Parts Lost 25 | . . . . . 2 1 8 14 Power 2 | . . . . . . . . 2 Propulsion 4 | . . . . . . . 1 3 Utility 12 | . . . . . 2 1 5 4 Weapon 7 | . . . . . . . 2 5 Highest Loss Streak 6 | . . . . . 1 1 5 6 To Critical Strikes 1 | . . . . . . . . 1 Average Slot Usage (%) 92 | . 99 100 89 85 75 87 86 94 Engine 8 | . 14 14 14 14 9 7 7 . Core 1 | . . . . . . . . 5 Leg 23 | . 25 28 28 28 18 22 22 21 Device 3 | . 2 . 1 . . 9 3 1 Storage 11 | . 18 14 12 14 9 7 7 7 Processor 12 | . . . 6 14 24 25 20 15 Hackware 6 | . . . . . . . 1 27 Protection 5 | . 6 14 5 . 5 6 11 . Ballistic Gun 13 | . 25 28 19 14 9 7 1 6 Ballistic Cannon 1 | . 2 . . . . . 6 . Naked Turns 3 | . . . . . . . . 3 Heaviest Build 88 | 10 25 19 55 55 60 75 88 58 Greatest Support 80 | 20 40 20 60 60 60 80 80 80 Greatest Overweight (x) 2 | . 1 . . . . . 1 2 Average Overweight (x) . | . . . . . . . . . Largest Inventory Capacity 20 | 8 10 10 20 20 20 20 20 20 Average Capacity 16 | 6 9 10 11 20 20 20 20 19 Most Carried 20 | 6 10 10 10 11 16 20 20 20 Average Carried 13 | 2 9 9 9 10 10 18 17 18 Final Capacity 20 | 8 10 10 20 20 20 20 20 5 Final Carried 20 | 6 10 10 10 11 16 20 15 5 Class Distribution -------------------- 81% | Mutant 18% | Bothacker-Mutant Dominant Class ---------------- Mutant | -10/Materials Mutant | -10/Mines Mutant | -10/Exiles Mutant | -9/Mines Mutant | -8/Materials Mutant | -7/Factory Mutant | -7/Garrison Bothacker-Mutant | -7/Factory Resources | -11 -10 -10 -10 -9 -8 -7 -7 -7 ----------- Run | Yrd Mat Min Exi Min Mat Fac Gar Fac Matter Collected 1744 | 247 643 . 65 20 52 75 194 448 Remotely . | . . . . . . . . . Salvage Created 2754 | . 592 . . . 964 481 218 499 Parts 165 | . 34 . . . 53 27 20 31 Haulers Intercepted 3 | . 2 . . . 1 . . . Recyclers Shooed 1 | . 1 . . . . . . . Parts Field Recycled . | . . . . . . . . . Retrieved Matter . | . . . . . . . . . Parts Self-Destructed . | . . . . . . . . . Prevented . | . . . . . . . . . Kills | -11 -10 -10 -10 -9 -8 -7 -7 -7 ------- Run | Yrd Mat Min Exi Min Mat Fac Gar Fac Combat Hostiles Destroyed 62 | . 10 . . . 19 9 15 9 Guns 38 | . 8 . . . 17 9 . 4 Cannons 13 | . 1 . . . . . 8 4 AOE 11 | . 1 . . . 2 . 7 1 Classes Destroyed 13 | . 5 . . . 3 4 . 1 Worker 1 | . . . . . . . . 1 Builder 5 | . . . . . 3 . . 2 Hauler 3 | . 2 . . . 1 . . . Recycler 2 | . 1 . . . . . . 1 Mechanic 1 | . 1 . . . . . . . Operator 2 | . . . . . 2 . . . Watcher 2 | . . . . . . 1 . 1 Swarmer 19 | . 1 . . . 4 2 10 2 Grunt 33 | . 9 . . . 12 4 4 4 Duelist 1 | . . . . . . 1 . . Sentry 3 | . . . . . 3 . . . Hunter 2 | . . . . . . 1 1 . Programmer 4 | . . . . . . 1 . 3 Best Kill Streak 12 | . 3 . . . 12 3 8 5 Combat Bots Only 12 | . 2 . . . 12 3 8 3 Max Kills in Single Turn 3 | . 1 . . . 3 1 2 3 Gunslinging . | . . . . . . . . . Exploded 2 | . 1 . . . 1 . 2 1 Melee . | . . . . . . . . . Uniques/NPCs Destroyed . | . . . . . . . . . Combat | -11 -10 -10 -10 -9 -8 -7 -7 -7 -------- Run | Yrd Mat Min Exi Min Mat Fac Gar Fac Hostile Shots Fired 519 | . 42 . . . 51 15 180 231 Missed 185 | . 10 . . . 22 4 49 100 Damage Taken 5209 | . 389 . . . 619 190 2111 1900 Core 893 | . 87 . . . 105 78 232 391 Absorbed by Shields . | . . . . . . . . . Redirected to Shielding 31 | . . . . . 31 . . . Core Remaining (%) 81 | 100 . . . 65 80 . . . Volleys Fired 161 | . 54 . . . . . 43 64 Largest 2 | . 2 . . . . . 2 2 Hottest 87 | . 55 . . . . . 87 80 Shots Fired 338 | . 107 . . . 73 36 53 69 Gun 227 | . 99 . . . 73 36 . 19 Cannon 74 | . 7 . . . . . 43 24 Launcher 12 | . 1 . . . . . 10 1 Special 25 | . . . . . . . . 25 Kinetic 277 | . 106 . . . 73 36 43 19 Thermal 24 | . . . . . . . . 24 Explosive 11 | . 1 . . . . . 10 . Electromagnetic 1 | . . . . . . . . 1 Robot Hit Streak 21 | . 15 . . . 9 21 3 6 Robot Miss Streak 5 | . 5 . . . 5 1 4 5 Penetration Max 1 | . . . . . . . . 1 Secondary Targets . | . . . . . . . . . Autonomous 111 | . . . . . 73 37 1 . Shots Hit Robots 211 | . 61 . . . 46 31 20 53 Core Hits 119 | . 32 . . . 32 15 22 18 Critical Kills 2 | . 1 . . . 1 . . . Critical Parts Destroyed 5 | . 2 . . . . 3 . . Critical Strikes 12 | . 4 . . . 1 3 4 . Destroy 7 | . 3 . . . 1 3 . . Blast 5 | . 1 . . . . . 4 . Melee Attacks 5 | . . . . . . . . 5 Impact . | . . . . . . . . . Slashing . | . . . . . . . . . Piercing . | . . . . . . . . . Sneak Attacks 2 | . . . . . . . . 2 Combat Hostiles 2 | . . . . . . . . 2 Follow-up Attacks . | . . . . . . . . . Damage Inflicted 6034 | . 731 . . . 1948 951 1406 998 Guns 3383 | . 638 . . . 1535 951 . 259 Cannons 1153 | . 72 . . . . . 579 502 Explosions 1389 | . 13 . . . 352 . 787 237 Melee . | . . . . . . . . . Ramming 109 | . 8 . . . 61 . 40 . Kinetic 4034 | . 710 . . . 1535 951 579 259 Thermal 686 | . . . . . . . . 686 Explosive 1152 | . 13 . . . 352 . 787 . Electromagnetic 53 | . . . . . . . . 53 Impact . | . . . . . . . . . Slashing . | . . . . . . . . . Piercing . | . . . . . . . . . Highest Corruption 2 | . 2 2 2 2 . . . . Average Corruption 2 | . 2 2 2 2 . . . . Corruption Purged . | . . . . . . . . . Corruption Blocked . | . . . . . . . . . Effects 29 | . 18 3 5 3 . . . . Message Errors 8 | . 2 2 3 1 . . . . Matter Fused 5 | . 4 . 1 . . . . . Heat Flow Errors 5 | . 4 . 1 . . . . . Energy Discharges 4 | . 3 . . 1 . . . . Parts Fused 1 | . 1 . . . . . . . Data Loss (minor) 4 | . 3 . . 1 . . . . Data Loss (major) 2 | . 1 1 . . . . . . Overload Shots . | . . . . . . . . . Overflow Damage 134 | . . . . . 17 . 22 95 Projectiles 13 | . . . . . . . 13 . Explosions 121 | . . . . . 17 . 9 95 Melee . | . . . . . . . . . Knockbacks 9 | . 3 . . . 1 . 5 . Impact 1 | . . . . . 1 . . . Kinetic 7 | . 2 . . . . . 5 . Secondary 1 | . 1 . . . . . . . Self-Inflicted Damage 592 | . . . . . 288 . 113 191 Shots 9 | . . . . . 3 . 3 3 Rammed . | . . . . . . . . . Targets Rammed 14 | . 2 . . . 4 . 6 2 Kicked 14 | . 2 . . . 4 . 6 2 Crushed . | . . . . . . . . . Highest Temperature 520 | . 271 . 120 . . 2 520 79 Average Temperature 126 | . 53 . 66 . . 2 182 42 Received Heat Transfer 1485 | . 222 . . . 135 45 774 309 Effects 8 | . . . . . . . 8 . Shutdowns 4 | . . . . . . . 4 . Energy Bleed 3 | . . . . . . . 3 . Short Circuit 1 | . . . . . . . 1 . Siege Activations . | . . . . . . . . . Robots Corrupted . | . . . . . . . . . Combat Hostiles . | . . . . . . . . . Parts Fried . | . . . . . . . . . Impact Corruptions . | . . . . . . . . . Robots Melted . | . . . . . . . . . Combat Hostiles . | . . . . . . . . . Parts Melted 2 | . . . . . . . . 2 Heat Transferred 907 | . . . . . . . . 907 Parts Sabotaged . | . . . . . . . . . Parts Stolen . | . . . . . . . . . Parts Stripped . | . . . . . . . . . Power Chain Reactions . | . . . . . . . . . Alert | -11 -10 -10 -10 -9 -8 -7 -7 -7 ------- Run | Yrd Mat Min Exi Min Mat Fac Gar Fac Peak Influence 713 | . 183 42 . . 713 601 529 277 Initial 324 | . . 42 . . . 324 10 277 Average 144 | . 80 42 . . 216 273 278 116 Maximum Alert Level 3 | . . . . . 3 2 2 1 Low Security (%) 81 | 100 100 100 . 100 61 56 38 90 Level 1 6 | . . . . . 2 7 21 9 Level 2 12 | . . . . . 35 35 40 . Level 3 . | . . . . . . . . . Level 4 . | . . . . . . . . . Level 5 . | . . . . . . . . . High Security . | . . . . . . . . . Max Security . | . . . . . . . . . Squads Dispatched 18 | . 3 . . . 5 3 . 7 Investigation 8 | . 3 . . . 2 . . 3 Extermination 3 | . . . . . . 1 . 2 Reinforcement 5 | . . . . . 1 2 . 2 Assault 1 | . . . . . 1 . . . Garrison 1 | . . . . . 1 . . . Intercept . | . . . . . . . . . Searches Triggered . | . . . . . . . . . Construction Impeded 3 | . . . . . 1 1 . 1 Haulers Reinforced . | . . . . . . . . . Active Scanning Responses . | . . . . . . . . . Cargo Convoy Interrupts . | . . . . . . . . . Stealth | -11 -10 -10 -10 -9 -8 -7 -7 -7 --------- Run | Yrd Mat Min Exi Min Mat Fac Gar Fac Distress Signals 1 | . 1 . . . . . . . Communications Jammed . | . . . . . . . . . Distress Signals . | . . . . . . . . . Times Spotted 119 | . 30 . . . 24 12 20 33 Peak Tracking Total 10 | . 4 . . . 6 3 10 7 Tactical Retreats 13 | . 4 . . . 1 2 3 3 Traps | -11 -10 -10 -10 -9 -8 -7 -7 -7 ------- Run | Yrd Mat Min Exi Min Mat Fac Gar Fac Traps Triggered 7 | . 1 . . . 1 1 . 4 Indirectly . | . . . . . . . . . Trap Hack Attempts . | . . . . . . . . . Triggered . | . . . . . . . . . Disarmed . | . . . . . . . . . Reprogrammed . | . . . . . . . . . Reused . | . . . . . . . . . Traps Extracted . | . . . . . . . . . Installed . | . . . . . . . . . Triggered . | . . . . . . . . . Machines | -11 -10 -10 -10 -9 -8 -7 -7 -7 ---------- Run | Yrd Mat Min Exi Min Mat Fac Gar Fac Machines Disabled 16 | . . . . . 5 3 3 5 Max in Single Turn 4 | . . . . . 2 1 1 4 Garrison Access 1 | . . . . . 1 . . . Garrison Relay 2 | . . . . . . . 2 . Machines Repaired . | . . . . . . . . . Machines Dismantled . | . . . . . . . . . Machines Sabotaged . | . . . . . . . . . Overloaded Fab Kills . | . . . . . . . . . Hacking | -11 -10 -10 -10 -9 -8 -7 -7 -7 --------- Run | Yrd Mat Min Exi Min Mat Fac Gar Fac Machines Accessed 31 | . 8 . . . 5 5 1 12 Terminals 23 | . 8 . . . 4 2 1 8 Fabricators 2 | . . . . . . . . 2 Repair Stations 1 | . . . . . . 1 . . Recycling Units 2 | . . . . . . . . 2 Scanalyzers 1 | . . . . . . 1 . . Garrison Access 2 | . . . . . 1 1 . . Total Hacks 87 | . 24 . . . 15 13 2 33 Successful 34 | . 7 . . . 8 7 . 12 Failed 53 | . 17 . . . 7 6 2 21 Catastrophic 12 | . 6 . . . 1 1 . 4 Database Lockouts . | . . . . . . . . . Manual 47 | . 19 . 1 . 10 4 . 13 Terminals 72 | . 24 . . . 14 8 2 24 Fabricators 6 | . . . . . . . . 6 Repair Stations 2 | . . . . . . 2 . . Recycling Units 3 | . . . . . . . . 3 Scanalyzers 2 | . . . . . . 2 . . Garrison Access 2 | . . . . . 1 1 . . Terminal Hacks 20 | . 5 . . . 5 3 . 7 Record 1 | . . . . . . . . 1 Robot Analysis 1 | . 1 . . . . . . . Prototype ID Bank 3 | . 1 . . . 2 . . . Terminal Index 3 | . 1 . . . 1 . . 1 Alert Level 1 | . . . . . . 1 . . Unreport Threat 4 | . . . . . 1 2 . 1 Locate Traps 2 | . 2 . . . . . . . Dispatch Records 1 | . . . . . . . . 1 Patrol Status 1 | . . . . . . . . 1 Investigation Status 1 | . . . . . . . . 1 Recall Reinforcements 1 | . . . . . 1 . . . Hauler Manifests 1 | . . . . . . . . 1 Fabricator Hacks 1 | . . . . . . . . 1 Build 1 | . . . . . . . . 1 Repair Station Hacks 1 | . . . . . . 1 . . Scan Component 1 | . . . . . . 1 . . Recycling Unit Hacks 2 | . . . . . . . . 2 Retrieve Matter 2 | . . . . . . . . 2 Scanalyzer 1 | . . . . . . 1 . . Insert Component 1 | . . . . . . 1 . . Garrison Access Hacks 2 | . . . . . 1 1 . . Unlock Access 2 | . . . . . 1 1 . . Unauthorized Hacks 7 | . 2 . . . 2 1 . 2 Terminals 7 | . 2 . . . 2 1 . 2 Assimilate 1 | . 1 . . . . . . . Botnet 6 | . 1 . . . 2 1 . 2 Fabricators . | . . . . . . . . . Repair Stations . | . . . . . . . . . Recycling Units . | . . . . . . . . . Scanalyzers . | . . . . . . . . . Garrison Access . | . . . . . . . . . Data Cores Recovered 1 | . . . . . 1 . . . Used 1 | . . . . . 1 . . . Hacking Detections 28 | . 8 . . . 4 4 1 11 Full Trace Events 6 | . 3 . . . 1 . . 2 Feedback Events . | . . . . . . . . . Feedback Blocked . | . . . . . . . . . Robot Schematics Acquired . | . . . . . . . . . Robots Built . | . . . . . . . . . Authchips . | . . . . . . . . . Time . | . . . . . . . . . Total Robot Build Rating . | . . . . . . . . . Part Schematics Acquired . | . . . . . . . . . Parts Built 1 | . . . . . . . . 1 Authchips . | . . . . . . . . . Time 106 | . . . . . . . . 106 Total Part Build Rating 6 | . . . . . . . . 6 Parts Repaired . | . . . . . . . . . Time . | . . . . . . . . . Parts Recycled . | . . . . . . . . . Recycled Matter . | . . . . . . . . . Retrieved Matter . | . . . . . . . . . Retrieved Components . | . . . . . . . . . Parts Scanalyzed . | . . . . . . . . . Part Schematics Acquired . | . . . . . . . . . Parts Damaged . | . . . . . . . . . Bothacking | -11 -10 -10 -10 -9 -8 -7 -7 -7 ------------ Run | Yrd Mat Min Exi Min Mat Fac Gar Fac Used RIF Installer 1 | . . . . . . . 1 . Robots Hacked 8 | . . . . . . . . 8 Non-combat 4 | . . . . . . . . 4 Combat 4 | . . . . . . . . 4 Robot Hacks Applied 18 | . . . . . . . . 18 generate_echo 1 | . . . . . . . . 1 ignore_repairs 2 | . . . . . . . . 2 map_walls 1 | . . . . . . . . 1 find_recycling 1 | . . . . . . . . 1 ignore_parts 1 | . . . . . . . . 1 map_route 1 | . . . . . . . . 1 mark_security 1 | . . . . . . . . 1 relay_feed 1 | . . . . . . . . 1 find_shortcuts 1 | . . . . . . . . 1 link_fov 1 | . . . . . . . . 1 broadcast_data 1 | . . . . . . . . 1 overload_power 1 | . . . . . . . . 1 disable_weapons 2 | . . . . . . . . 2 go_dormant 2 | . . . . . . . . 2 formatsys_high 1 | . . . . . . . . 1 Relay Couplers Released 13 | . . . . . 1 4 8 . Machine Destruction 9 | . . . . . 1 . 8 . Programmers 4 | . . . . . . 4 . . Attached 5 | . . . . . . . 4 1 Fabnet Peak Effective % . | . . . . . . . . . Robots Rewired . | . . . . . . . . . Allies Hacked . | . . . . . . . . . Hacks Repelled . | . . . . . . . . . Allies | -11 -10 -10 -10 -9 -8 -7 -7 -7 -------- Run | Yrd Mat Min Exi Min Mat Fac Gar Fac Total Allies 1 | . . . . . . . . 1 Largest Group 1 | . . . . . . . . 1 Highest-Rated Group 16 | . . . . . . . . 16 Highest-Rated Ally 16 | . . . . . . . . 16 Total Orders . | . . . . . . . . . Ally Attacks 1 | . . . . . . . . 1 Total Damage . | . . . . . . . . . Kills . | . . . . . . . . . Allies Corrupted . | . . . . . . . . . Allies Melted . | . . . . . . . . . Intel | -11 -10 -10 -10 -9 -8 -7 -7 -7 ------- Run | Yrd Mat Min Exi Min Mat Fac Gar Fac Robot Analysis Total 1 | . 1 . . . . . . . Derelict Logs Recovered 2 | . . 1 . 1 . . . . Drone Launches . | . . . . . . . . . Drone Recoveries . | . . . . . . . . . Exploration | -11 -10 -10 -10 -9 -8 -7 -7 -7 ------------- Run | Yrd Mat Min Exi Min Mat Fac Gar Fac Turns Passed 5395 | 72 1401 219 368 326 303 919 492 1295 Spaces Moved 4009 | 51 817 182 339 356 304 800 290 870 Core 13 | 7 . . . . . . . 6 Treads 25 | . 25 . . . . . . . Legs 3971 | 44 792 182 339 356 304 800 290 864 Wheels . | . . . . . . . . . Hover . | . . . . . . . . . Flight . | . . . . . . . . . Fastest Speed 50 | 50 120 120 90 90 90 90 90 50 Average Speed 109 | 110 134 120 100 90 90 98 117 108 Slowest Speed 270 | 120 190 120 120 90 90 103 179 270 Overloaded Moves . | . . . . . . . . . Propulsion Burnouts . | . . . . . . . . . Robots Hopped . | . . . . . . . . . Cave-ins Triggered . | . . . . . . . . . Exploration Rate (%) 42 | 3 97 42 61 68 31 19 37 27 Regions Visited 8 Branch Regions 3 Pre-discovered Areas 2 | . . 1 . 1 . . . . Known Exits Taken 1 | . . . . . . 1 . . Unknown Exits Taken 6 | 1 1 1 1 1 1 . . . Scrap Searched 1 | . . . . 1 . . . . Spaces Dug . | . . . . . . . . . Terrain Destroyed 253 | . 9 . . . 103 11 90 40 Melee . | . . . . . . . . . Projectile 71 | . . . . . 53 11 5 2 AOE 182 | . 9 . . . 50 . 85 38 Terrain Rammed . | . . . . . . . . . Walls Destroyed . | . . . . . . . . . Machines Disabled . | . . . . . . . . . Actions | -11 -10 -10 -10 -9 -8 -7 -7 -7 --------- Run | Yrd Mat Min Exi Min Mat Fac Gar Fac Total 4802 | 64 1020 183 366 361 333 934 383 1158 Wait 400 | . 92 . 5 5 9 92 19 178 Move 4000 | 50 816 181 338 355 303 799 288 870 Hop . | . . . . . . . . . Pick Up 62 | 8 14 1 5 1 6 18 . 9 Fast Attach 38 | 4 2 . 8 . 4 5 5 10 Attach 20 | 2 1 . . . 1 3 4 9 Detach 7 | . . . . . 2 1 . 4 Swap 33 | . 23 . 1 . 1 2 3 3 Drop 48 | . 16 1 9 . 3 14 1 4 Fire 161 | . 54 . . . . . 43 64 Melee 5 | . . . . . . . . 5 Ram . | . . . . . . . . . Kick 14 | . 2 . . . 4 . 6 2 Crush . | . . . . . . . . . Escape Stasis . | . . . . . . . . . Rewire 14 | . . . . . . . 14 . Trap . | . . . . . . . . . Miscellaneous . | . . . . . . . . . Route ------- -11/Scrapyard -10/Materials (discovered 3 exits: [*Mat x2] / [*Min]) -10/Mines (discovered 3 exits: [*Mat x2] / *Exi) -10/Exiles -9/Mines -8/Materials -7/Factory (discovered 2 exits: *Fac / Gar) -7/Garrison -7/Factory (discovered 1 exit: *Fac) History --------- Turn | Location | Event 5 | -11/Scrapyard | Discovered new exit (range 15) 73 | -11/Scrapyard | Entered Materials 304 | -10/Materials | Build established: Mutant 491 | -10/Materials | Discovered new exit (range 16) 1182 | -10/Materials | Discovered new exit (range 12) 1351 | -10/Materials | Discovered new exit (range 4) 1474 | -10/Materials | Entered Mines 1481 | -10/Mines | Received a Rocket Launcher from a helpful Derelict 1516 | -10/Mines | A weapon hastily lodged in a ceiling crevice suddenly fell to the ground 1517 | -10/Mines | Discovered new exit (range 10) 1553 | -10/Mines | Learned location of Recycling (-8) 1598 | -10/Mines | Assembled infested the area 1668 | -10/Mines | Discovered new exit (range 5) 1688 | -10/Mines | Deemed a non-threat by the Exiles lab entrance 1688 | -10/Mines | Discovered new exit (range 5) 1693 | -10/Mines | Entered Exiles 1723 | -10/Exiles | Met 8R-AWN 1746 | -10/Exiles | Met EX-HEX 1783 | -10/Exiles | Met EX-BIN 1797 | -10/Exiles | Aligned with FarCom system 1798 | -10/Exiles | Given EX-Vault access code 1830 | -10/Exiles | Opened EX-Vault 1836 | -10/Exiles | Found Prototype Leg 1836 | -10/Exiles | Identified Potential Leg 1839 | -10/Exiles | Found Potential Leg 1846 | -10/Exiles | Found Prototype Ballistic Gun 1846 | -10/Exiles | Identified AWS/Gauss 1852 | -10/Exiles | Found Prototype Device 1852 | -10/Exiles | Identified Cloak of Protection 1873 | -10/Exiles | Warned to stay clear of 0b10 Research branches 1904 | -10/Exiles | Met EX-DEC 1944 | -10/Exiles | Discovered new exit (range 14) 2061 | -10/Exiles | Stole three prototypes: Potential Leg, AWS/Gauss, Cloak of Protection 2061 | -10/Exiles | Entered Mines 2076 | -9/Mines | Met a Derelict bent on vengeance 2372 | -9/Mines | Discovered new exit (range 4) 2387 | -9/Mines | Entered Materials 2387 | -8/Materials | Evolved 4 slots: Utility x4 2548 | -8/Materials | Identified exit to Garrison 2562 | -8/Materials | Garrison activated, responded to threat 2617 | -8/Materials | Destroyed 12 combat bots 2685 | -8/Materials | Discovered new exit (range 8) 2690 | -8/Materials | Entered Factory 2690 | -7/Factory | Evolved 2 slots: Propulsion x1, Utility x1 2692 | -7/Factory | FarCom data flow suspended 2966 | -7/Factory | Discovered new exit (range 6) 2971 | -7/Factory | Identified exit to Factory 3230 | -7/Factory | Identified exit to Garrison 3609 | -7/Factory | Entered Garrison 3658 | -7/Garrison | Triggered checkpoint 3717 | -7/Garrison | Garrison Relay disabled 3794 | -7/Garrison | Triggered checkpoint 3810 | -7/Garrison | Triggered checkpoint 3834 | -7/Garrison | Destroyed 8 combat bots 3836 | -7/Garrison | Lost 3 parts (2u1w) 3936 | -7/Garrison | Triggered checkpoint 4023 | -7/Garrison | Discovered new exit (range 10) 4034 | -7/Garrison | Lost 5 parts (1n3u1w) 4048 | -7/Garrison | Triggered checkpoint 4051 | -7/Garrison | Garrison Relay disabled 4062 | -7/Garrison | Installed Relay Interface Framework 4101 | -7/Garrison | Entered Factory 4558 | -7/Factory | Fabricated Disruptor Cannon (x1) 4699 | -7/Factory | Build established: Bothacker-Mutant 4914 | -7/Factory | Core integrity fell below 50% 4914 | -7/Factory | Discovered exit to Factory (range 16) 5267 | -7/Factory | Core integrity fell below 20% 5312 | -7/Factory | Lost 6 parts (1p2n1u2w) 5393 | -7/Factory | Released all parts (9) 5396 | -7/Factory | Destroyed by S-27 Virus with Autogun Last Messages --------------- 05390_ Fusion Modulator explodes. 05390_ Gauss Rifle destroyed. 05390_ Destroyed Gauss Rifle. 05390_ K-01 Serf destroyed. 05390_ Fusion Modulator explodes. 05390_ Destroyed Lgt. Ion Engine. 05390_ U-05 Engineer destroyed. 05390_ G-47 Trooper destroyed. 05391_ Penetrated by Slug. 05393_ Released Lgt. Deuterium Engine. 05393_ Released Imp. Titanium Leg. 05393_ Released Hcp. Storage Unit. 05393_ Released Targeting Computer. 05393_ Released Imp. Signal Interpreter. 05393_ Released Relay Coupler [Swarmer]. 05393_ Released Imp. Medium Armor Plating. 05393_ Released Adv. EMP Blaster. 05394_ C-30 ARC bursts open, deploying its payload. 05394_ S-27 Virus unfolds itself. Map ----- +----------------------------------------------------+ | ?????????????????????????????????????????????????? | | ?????????????????????????????????????????????????? | | ?????????????????????????????????????????????????? | | ?????????????????????????????????????????????????? | | ?????????????????????????????????????????????????? | | ??????????????????????????????????????????????? ?? | | ??????????????????????????????????????????????? #? | | ???????????????????????????????????????????#### | | ??????????????????????????????????????????? ^ | | ???????????????????????????????????????????# | | ????????????????????????????????????"""????# "" | | ?????????????????????????????????????""????# "" | | ?????????????????????????????????????? ???# "" | | ??????????????????????????????????????? #### "" | | ????????????????????????????????????????+ | | ????????????????????????????????????????# | | ?????????????????????####+########+###### | | ????????????????????? | | ????????????????????? | | ?????????????????????? | | ?????????????????????? | | ?????????????????????? """ """ """ | | ???????????????????????? """ """ """ | | ???????????????????????? ? """ """ """ | | ??????????????????#######/###### """ """ """ | | ?????????????????## @ # "" | | ?????????????????#; ! # %"" """ """ "" | | ????????????????##; # """ """ """ F | | ????????????????# = """ """ """ "" | | ????????????????# l! ; """ """ "" | | ????????????????# ]==[% s | | ????????????????# !!*!] %s | | ????????????????# !=!!###+### | | ????????????????# ! ;#??? ?####+#### | | ????????????????# ;#??????????????# | | ????????????????##; ;#??????????????# | | ?????????????????#; ##??????????????# | | ?????????????????###;; u;;;;;;#???????????????# | | ???????????????????##### # ###???????????????# | | ?#?????????????????????# #####?????????????????# | | #? ??????????????# #?????????????????????# | | #? [ ?????????? # ####??????????????????+ | | #? ?????????? + ???????????????????### | | #? ?????????? # #???????????????????## | | ######+################ #???????????????????# | | #???????????????????# | | #????????????????????? | | ?????????????????????? | | !??????????????????? | | """ !??????????????????? | +----------------------------------------------------+ Best States ------------- Heat Dissipation 48 Energy Generation 15 Energy Capacity 275 Matter Stores 490 Matter Capacity 500 Sight Range 18 Terrain Scan Density 10 Jamming Range 12 Cloak Strength 5 Armor Coverage 750 Weapon Shielding 33 Evasion (%) 57 Targeting Accuracy 5 Core Analysis 6 Recoil Reduction 4 Kinecelleration 30 Relay Coupler Types 4 Relay Coupler Value 139 Item Schematics ----------------- None Robot Schematics ------------------ None Fabricated ------------ Disruptor Cannon | x1 | -7/Factory | Preloaded Alien Tech Used ----------------- None Achievements -------------- Error 47 Challenges ------------ None Game ------ Seed TimingSeismicStripper Manual? 0 Play Time 01:39:22 Cumulative 95.7 hours Start 2024.03.14 @ 19:39:25 End 2024.03.14 @ 21:35:24 Sessions 1 Manual Loads 0 Difficulty Rogue Special Mode None Game No. 71 Rogue 71 Adventurer 0 Explorer 0 Win Type - Total 0 Types 0/0/0/0/0/0/0/0/0 Lore% 48 Gallery% 47 Achievement% 39 Wizard Run 0 Options --------- Layout 1 ASCII 0 Keyboard 1 Movement Numpad Keybinds 0 Fullscreen 2 Font 24/Smallcaps Map View 50x35 Zoom Use 12% Tactical HUD 1 Map Filters NONE Filters NONE Steam 1 RUN: ba23eaa4-582a-40e7-b6f4-5ad4715130ac